bitfinex-derivatives/quotes_ETHF0:USTF0_20250404
["timestamp","ask_amount","ask_price","bid_price","bid_amount"]
[1743737526837,2.52961,1788.6,1788.5,1.11867]
[1743737527036,1.411,1788.6,1788.5,1.11867]
[1743737527439,1.411,1788.6,1788.3,1.3889]
[1743737527638,1.411,1788.6,1788.5,1.11868]
[1743737528046,4.049,1788.7,1788.6,1.11861]
[1743737528344,2.50889,1788.8,1788.6,2.54747]
[1743737528545,3.2078,1788.9,1788.8,1.11849]
[1743737528737,0.00838504,1789.3,1788.7,11.48005]
[1743737528938,1.3904,1789.2,1789.1,1.11825]
[1743737529545,1.3904,1789.2,1789.0,2.54723]
[1743737529745,1.3904,1789.2,1789.1,1.1183]
[1743737530148,0.00838504,1789.3,1789.2,1.11824]
[1743737530345,1.12656504,1789.3,1789.1,1.11825]
[1743737530544,1.1183,1789.1,1789.0,1.4289]
[1743737530741,1.39878504,1789.3,1789.0,1.4289]
[1743737531049,0.00838504,1789.3,1789.2,1.11824]
[1743737531438,0.00838504,1789.3,1789.1,3.2078]
[1743737531634,0.00838504,1789.3,1789.0,5.4809]
[1743737531635,1.12656504,1789.3,1789.2,1.4184]
[1743737531847,0.00838504,1789.3,1789.2,1.4184]
[1743737532147,0.00838504,1789.3,1789.2,2.53664]
[1743737532648,0.00838504,1789.3,1788.9,3.9525]
[1743737532945,1.11828,1789.2,1789.0,1.11833]
[1743737533143,1.11828,1789.2,1788.9,2.1631]
[1743737533144,1.12660504,1789.3,1789.1,2.53668]
[1743737533447,1.11824,1789.2,1789.1,1.4184]
[1743737533635,1.49338504,1789.3,1788.9,0.7447]
[1743737533636,1.11836,1789.0,1788.9,0.7447]
[1743737533843,1.11833,1789.1,1788.9,2.1936]
[1743737534045,1.1183,1789.1,1788.9,3.31198]
[1743737534245,1.11836,1789.0,1788.9,3.31203]
[1743737534447,1.11832,1789.1,1788.9,2.1936]
[1743737534654,1.11829,1789.2,1789.1,1.1183]
[1743737534851,0.00838504,1789.3,1789.2,1.11824]
[1743737535145,1.11824,1789.2,1789.1,1.4489]
[1743737535346,1.11836,1789.0,1788.9,1.86309]
[1743737535548,1.4519,1789.2,1789.0,1.11836]
[1743737535851,1.11843,1788.9,1788.8,4.32627]
[1743737536348,1.11855,1788.7,1788.6,3.2078]
[1743737537147,2.57044,1788.8,1788.7,1.11855]
[1743737537345,1.11855,1788.7,1788.6,3.2078]
[1743737537547,1.11876,1788.4,1788.2,0.7415]
[1743737537851,2.79671,1788.5,1788.1,3.2078]
[1743737538054,1.11885,1788.3,1788.1,1.11893]
[1743737538353,1.4672,1788.2,1788.1,1.11893]
[1743737538852,0.00838504,1788.4,1788.0,6.00525]
[1743737539054,0.00838504,1788.4,1788.3,1.1188]
[1743737539251,1.12712504,1788.4,1788.2,3.2078]
[1743737539457,1.47558504,1788.4,1788.3,1.1188]
[1743737539754,0.00838504,1788.4,1788.3,1.1188]
[1743737539946,0.00838504,1788.4,1788.3,3.6188]
[1743737540149,10.7279209,1789.0,1788.9,1.11843]
[1743737540850,10.7279209,1789.0,1788.9,1.86813]
[1743737543260,1.12670504,1789.1,1788.9,1.86813]
[1743737543555,1.12670504,1789.1,1788.8,3.21618504]
[1743737543754,1.4554,1789.0,1788.8,3.21618504]
[1743737543954,1.4554,1789.0,1788.9,1.11843]
[1743737544551,1.4554,1789.0,1788.8,3.21618504]
[1743737544552,0.00838504,1789.1,1789.0,1.11836]
[1743737544860,10.7279209,1789.5,1789.4,1.11811]
[1743737545555,12.1833209,1789.5,1789.4,1.11811]
[1743737546059,10.7279209,1789.5,1789.4,1.11811]
[1743737546558,12.1802209,1789.5,1789.4,1.11811]
[1743737547460,1.4523,1789.5,1789.4,1.11811]
[1743737549262,10.73630594,1789.6,1789.5,1.11805]
[1743737549460,10.73630594,1789.6,1789.5,4.32585]
[1743737550558,0.00838504,1789.6,1789.5,4.32585]
[1743737551058,1.50158504,1789.6,1789.5,4.32585]
[1743737551257,10.00437504,1789.6,1789.2,1.11818]
[1743737551556,5.59105,1789.3,1788.6,4.8095]
[1743737551753,7.49671,1789.2,1788.6,8.0173]
[1743737551960,1.11843,1788.9,1788.3,7.2768]
[1743737552362,6.69342,1788.9,1788.3,4.069]
[1743737552563,4.32631,1788.8,1788.2,2.79716]
[1743737552762,2.51585,1788.7,1788.4,1.11871]
[1743737553160,3.2078,1788.8,1788.7,1.11855]
[1743737553865,3.2078,1788.8,1788.6,0.00838504]
[1743737554065,3.2078,1788.8,1788.7,1.11855]
[1743737554265,3.2078,1788.8,1788.6,0.00838504]
[1743737554467,3.2078,1788.8,1788.7,1.11855]
[1743737554764,2.52416504,1788.9,1788.7,1.11855]
[1743737554967,1.40568504,1788.9,1788.7,1.11855]
[1743737555165,2.52415504,1788.9,1788.8,1.461]
[1743737555863,1.40568504,1788.9,1788.6,0.00838504]
[1743737556064,1.11855,1788.7,1788.6,1.46938504]
[1743737556456,1.11855,1788.7,1788.6,0.00838504]
[1743737556658,2.79675,1788.5,1788.1,0.7258]
[1743737556858,4.32666,1788.3,1788.0,1.461]
[1743737557058,1.11889,1788.2,1788.0,2.57996]
[1743737557260,1.11889,1788.2,1788.1,1.11893]
[1743737557460,1.11889,1788.2,1788.0,1.461]
[1743737557461,1.11889,1788.2,1788.0,2.57994]
[1743737557661,2.64419,1788.2,1788.0,1.461]
[1743737557860,2.64419,1788.2,1788.0,2.57995]
[1743737558167,1.11893,1788.1,1788.0,1.461]
[1743737558764,2.64421,1788.2,1788.0,2.57999]
[1743737559166,1.5253,1788.2,1788.1,1.11893]
[1743737560071,2.6442,1788.2,1788.0,2.57995]
[1743737560265,2.64421,1788.2,1788.0,1.461]
[1743737560466,1.11893,1788.1,1788.0,1.461]
[1743737560966,2.64421,1788.2,1788.0,2.57996]
[1743737561164,1.5253,1788.2,1788.1,1.11893]
[1743737562071,1.5253,1788.2,1788.0,2.57996]
[1743737562267,1.11907,1787.9,1787.7,3.2078]
[1743737562569,1.5253,1788.2,1787.9,1.119]
[1743737562761,0.00838504,1788.0,1787.9,1.119]
[1743737563163,0.00838504,1788.0,1787.9,4.3268]
[1743737563369,0.00838504,1788.0,1787.9,1.11905]
[1743737563567,1.45808504,1788.0,1787.9,1.11905]
[1743737563768,2.57707504,1788.0,1787.9,1.11905]
[1743737564065,1.45808504,1788.0,1787.9,1.11905]
[1743737564273,1.45808504,1788.0,1787.8,1.11907]
[1743737564467,1.11905,1787.9,1787.8,1.11907]
[1743737564871,4.25558504,1788.0,1787.5,5.486]
[1743737565067,1.11924,1787.6,1787.4,3.2078]
[1743737565270,1.4469,1787.8,1787.4,3.2078]
[1743737565467,1.11924,1787.6,1787.5,1.11927]
[1743737565665,3.2078,1787.7,1787.3,3.2078]
[1743737565871,1.11932,1787.5,1787.1,8.31825]
[1743737566072,1.4469,1787.6,1787.5,1.1193]
[1743737566265,3.2078,1787.9,1787.5,2.79826]
[1743737566471,1.4469,1787.9,1787.8,1.11911]
[1743737567376,0.00838504,1788.0,1787.9,1.11905]
[1743737568677,1.41308504,1788.0,1787.9,1.11905]
[1743737570271,0.00838504,1788.0,1787.9,1.11905]
[1743737570476,26.23798266,1788.6,1788.5,1.11868]
[1743737570777,21.21490575,1788.6,1788.5,5.17168]
[1743737570973,18.33960575,1788.6,1788.5,7.67168]
[1743737571271,14.69519575,1788.6,1788.5,8.40648]
[1743737571579,14.69519575,1788.6,1788.5,14.37648]
[1743737571780,9.46676555,1788.7,1788.6,1.11861]
[1743737571981,9.46676555,1788.7,1788.6,10.29641]
[1743737571982,4.83755555,1788.7,1788.6,10.29641]
[1743737572277,5.55e-06,1788.7,1788.6,12.79641]
[1743737572473,5.55e-06,1788.7,1788.6,16.85441]
[1743737572978,5.9e-07,1788.8,1788.7,1.11855]
[1743737573476,5.9e-07,1788.8,1788.7,3.61855]
[1743737575377,5.9e-07,1788.8,1788.7,5.09985]
[1743737575976,5.9e-07,1788.8,1788.7,9.14185]
[1743737576875,5.9e-07,1788.8,1788.7,2.59985]
[1743737577068,5.9e-07,1788.8,1788.5,0.7348]
[1743737577275,1.51780059,1788.8,1788.7,1.11855]
[1743737577777,5.9e-07,1788.8,1788.7,5.15855]
[1743737577979,5.9e-07,1788.8,1788.7,6.61745]
[1743737579180,5.9e-07,1788.8,1788.7,1.11855]
[1743737579382,5.9e-07,1788.8,1788.6,4.32637]
[1743737579581,5.9e-07,1788.8,1788.7,1.11855]
[1743737579776,1.39340059,1788.8,1788.7,1.11855]
[1743737581782,5.9e-07,1788.8,1788.7,2.57805]
[1743737581985,5.9e-07,1788.8,1788.7,5.07805]
[1743737582282,5.9e-07,1788.8,1788.7,2.57805]
[1743737582884,5.9e-07,1788.8,1788.7,5.07805]
[1743737584185,5.9e-07,1788.8,1788.7,11.04805]
[1743737584585,5.9e-07,1788.8,1788.7,15.10605]
[1743737586090,5.9e-07,1788.8,1788.7,9.13605]
[1743737589996,0.6943,1789.7,1789.6,1.11799]
[1743737590487,0.6943,1789.7,1789.3,6.00322]
[1743737590688,0.6943,1789.7,1789.1,2.79576]
[1743737590890,3.2078,1789.6,1789.5,1.11804]
[1743737591088,1.11816,1789.4,1789.0,2.79589]
[1743737591288,3.2078,1789.3,1789.2,1.11824]
[1743737591499,4.069,1789.4,1789.3,1.11818]
[1743737591891,7.68714,1789.4,1789.2,1.1182]
[1743737592095,1.11819,1789.3,1789.2,1.11824]
[1743737592297,7.68714,1789.4,1789.2,1.11824]
[1743737592596,6.569,1789.4,1789.3,1.11818]
[1743737592792,5.18711,1789.4,1789.2,1.11818]
[1743737592992,5.18711,1789.4,1789.0,5.59996504]
[1743737593294,1.4647,1789.3,1789.2,1.11818]
[1743737594703,1.4647,1789.3,1789.2,2.59828]
[1743737598003,0.70268504,1789.7,1789.6,1.11799]
[1743737598196,0.70268504,1789.7,1789.5,1.118]
[1743737598390,1.82065504,1789.7,1789.5,1.118]
[1743737598596,1.82065504,1789.7,1789.6,1.11799]
[1743737598795,1.82065504,1789.7,1789.4,2.79529]
[1743737599002,0.70268504,1789.7,1789.6,1.11799]
[1743737599506,2.20688504,1789.7,1789.6,1.11799]
[1743737602390,5.04e-06,1789.7,1789.6,8.37079]
[1743737602801,5.04e-06,1789.7,1789.6,9.81859]
[1743737603605,5.04e-06,1789.7,1789.6,12.31859]
[1743737603798,5.04e-06,1789.7,1789.6,13.03579]
[1743737604104,5.04e-06,1789.7,1789.6,13.56606619]
[1743737606102,3.2078,1790.6,1790.3,1.11755]
[1743737606310,1.5151,1790.7,1790.6,1.11736]
[1743737606510,2.9554,1790.7,1790.6,1.11736]
[1743737608007,2.9554,1790.7,1790.5,0.00838504]
[1743737608008,5.4554,1790.7,1790.5,0.00838504]
[1743737608209,5.4554,1790.7,1789.7,5.58955]
[1743737608210,1.11751,1790.4,1790.2,1.11759]
[1743737608506,1.433,1790.3,1790.2,1.11761]
[1743737608809,1.433,1790.3,1789.9,4.27651]
[1743737609008,1.4224,1790.2,1790.1,1.11764]
[1743737609712,2.8554,1790.2,1790.1,1.11764]
[1743737611606,6.47306,1790.2,1790.0,1.12609504]
[1743737611910,2.8554,1790.2,1790.1,1.11768]
[1743737612300,5.3554,1790.2,1790.1,1.11768]
[1743737613007,6.47301,1790.2,1790.1,1.11768]
[1743737613411,8.5632,1790.2,1790.0,0.00838504]
[1743737613706,1.11768,1790.1,1790.0,1.11774]
[1743737613910,1.4971,1790.1,1790.0,1.11774]
[1743737614712,2.61478,1790.1,1790.0,1.11774]
[1743737614906,1.4971,1790.1,1790.0,1.11774]
[1743737616603,1.11774,1790.0,1789.9,1.12614504]
[1743737617610,1.4971,1790.1,1790.0,1.11774]
[1743737618011,3.2078,1790.2,1790.1,1.11768]
[1743737619014,1.11771,1790.1,1789.9,1.12613504]
[1743737619207,3.30961,1790.1,1789.9,1.12613504]
[1743737619607,1.11774,1790.0,1789.9,0.00838504]
[1743737619912,2.61444,1790.0,1789.9,0.00838504]
[1743737621917,2.57022,1790.1,1789.9,0.00838504]
[1743737622120,7.2438,1790.2,1790.0,1.1177]
[1743737622320,4.32541,1790.2,1790.1,1.5258]
[1743737622721,1.11774,1790.0,1789.9,0.00838504]
[1743737623620,2.55934,1790.0,1789.9,0.00838504]
[1743737623918,5.05934,1790.0,1789.9,0.00838504]
[1743737624219,8.26714,1790.0,1789.9,0.00838504]
[1743737624924,1.11774,1790.0,1789.9,1.12618504]
[1743737625723,6.71087,1790.2,1790.1,1.11768]
[1743737625724,3.2078,1790.2,1790.1,1.11768]
[1743737625917,3.2078,1790.2,1789.9,2.23208504]
[1743737626222,1.11774,1790.0,1789.9,1.47278504]
[1743737626625,1.1179,1789.8,1789.6,1.11798]
[1743737626920,1.1179,1789.8,1789.7,1.4644]
[1743737627116,2.52603,1789.9,1789.7,2.58231]
[1743737627320,1.11786,1789.8,1789.7,1.4644]
[1743737627625,2.52604,1789.9,1789.7,2.5823]
[1743737627920,1.41658504,1789.9,1789.8,1.11786]
[1743737628122,1.41658504,1789.9,1789.7,2.58227]
[1743737628322,2.53440504,1789.9,1789.7,2.58227]
[1743737628625,1.41658504,1789.9,1789.8,1.11786]
[1743737628820,0.00838504,1789.9,1789.8,1.11786]
[1743737629027,0.00838504,1789.9,1789.8,2.52276]
[1743737629426,1.12618504,1789.9,1789.8,1.4049]
[1743737629626,1.12618504,1789.9,1789.7,2.58229]
[1743737629922,1.4942,1789.8,1789.7,2.58229]
[1743737630823,0.00838504,1789.9,1789.8,1.11786]
[1743737632524,1.46478504,1789.9,1789.8,1.11786]
[1743737632718,0.00838504,1789.9,1789.8,1.11786]
[1743737632920,1.46478504,1789.9,1789.8,1.11786]
[1743737633225,5.08258504,1789.9,1789.8,1.11786]
[1743737633521,8.01478504,1789.9,1789.8,1.11786]
[1743737633927,9.13258504,1789.9,1789.8,1.11786]
[1743737634120,8.01478504,1789.9,1789.8,1.11786]
[1743737635129,5.51478504,1789.9,1789.8,1.11786]
[1743737635323,6.63258504,1789.9,1789.8,1.11786]
[1743737635720,5.51478504,1789.9,1789.8,1.11786]
[1743737636430,6.63258504,1789.9,1789.8,1.11786]
[1743737636632,5.51478504,1789.9,1789.8,1.11786]
[1743737637431,5.51478504,1789.9,1789.7,1.4584]
[1743737637629,6.63262504,1789.9,1789.8,1.11786]
[1743737638233,1.11793,1789.7,1789.6,0.00838504]
[1743737638432,4.32573,1789.7,1789.6,0.00838504]
[1743737638632,6.82573,1789.7,1789.6,1.12637504]
[1743737638839,8.31573,1789.7,1789.6,1.12637504]
[1743737640041,3.2078,1789.7,1789.6,1.12637504]
[1743737640544,0.00838504,1789.9,1789.8,1.11786]
[1743737641142,19.35510836,1790.1,1790.0,1.11774]
[1743737641741,19.35510836,1790.1,1790.0,2.56804]
[1743737644746,0.00838504,1790.2,1790.1,1.11768]
[1743737644948,1.12599504,1790.2,1790.0,2.56799]
[1743737645248,0.00838504,1790.2,1790.1,1.11768]
[1743737645549,0.00838504,1790.2,1790.1,1.81378]
[1743737648348,19.35510836,1790.3,1790.2,1.11761]
[1743737648541,19.35510836,1790.3,1790.2,9.81641]
[1743737648737,14.99377592,1790.3,1790.2,12.31641]
[1743737649043,8.95921592,1790.3,1790.2,12.31641]
[1743737650039,8.95921592,1790.3,1790.2,9.81641]
[1743737650349,0.00838504,1790.4,1790.3,1.11755]
[1743737650647,0.00838504,1790.4,1790.3,1.88535]
[1743737652651,0.00838504,1790.4,1790.3,4.38535]
[1743737653054,5.04e-06,1790.4,1790.3,4.38535]
[1743737654157,5.04e-06,1790.4,1790.3,1.88535]
[1743737654349,5.04e-06,1790.4,1790.3,5.89635]
[1743737655550,5.04e-06,1790.4,1790.3,1.88535]
[1743737655759,5.04e-06,1790.4,1790.3,1.11755]
[1743737657245,1.11749504,1790.4,1790.2,1.11758]
[1743737657451,2.57825,1790.3,1790.2,1.11761]
[1743737657656,1.4607,1790.3,1790.2,1.11761]
[1743737657956,2.57825,1790.3,1790.2,1.11761]
[1743737658252,1.4607,1790.3,1790.0,8.11664]
[1743737658455,1.4607,1790.3,1790.2,1.11761]
[1743737658851,5.04e-06,1790.4,1790.3,1.11755]
[1743737661856,5.04e-06,1790.4,1790.3,3.61755]
[1743737663555,5.04e-06,1790.4,1790.3,1.11755]
[1743737671150,5.04e-06,1790.4,1790.3,3.61755]
[1743737671357,22.21927596,1790.9,1790.3,3.61755]
[1743737671358,1.5286,1790.8,1790.7,1.1173]
[1743737671557,21.50567596,1790.9,1790.8,1.11724]
[1743737671757,2.83144528,1790.9,1790.8,8.29604]
[1743737671952,2.83144528,1790.9,1790.8,10.79604]
[1743737672459,0.00838504,1791.0,1790.9,1.11718]
[1743737672763,5.04e-06,1791.0,1790.9,3.61718]
[1743737673259,5.04e-06,1791.0,1790.9,4.11979439]
[1743737674153,5.04e-06,1791.0,1790.9,10.08979439]
[1743737674354,22.55573573,1791.4,1791.3,1.11693]
[1743737674553,3.7478186,1791.4,1791.3,8.29773]
[1743737674851,1.4861,1791.9,1791.8,1.11662]
[1743737675552,1.4861,1791.9,1791.7,1.12502504]
[1743737675751,1.4861,1791.9,1791.8,1.11662]
[1743737678660,1.4861,1791.9,1791.7,3.95088504]
[1743737678661,0.00838504,1792.0,1791.9,1.11655]
[1743737678858,0.00838504,1792.0,1791.9,8.29235]
[1743737679548,0.00838504,1792.0,1791.9,4.32435]
[1743737680456,0.00838504,1792.0,1791.9,1.11655]
[1743737680854,5.58137,1792.4,1791.9,1.11655]
[1743737680855,3.2078,1792.7,1792.1,2.79108]
[1743737681157,1.4223,1792.6,1792.5,1.11618]
[1743737683855,3.9223,1792.6,1792.4,1.11621]
[1743737684054,1.4223,1792.6,1792.4,1.11621]
[1743737684252,1.4351,1792.5,1792.4,1.11621]
[1743737685756,1.11626,1792.4,1792.2,1.11635]
[1743737685961,2.50911,1792.3,1792.1,1.11642]
[1743737686254,0.7482,1792.2,1792.1,1.11642]
[1743737686455,2.141,1792.2,1792.1,1.11642]
[1743737687665,1.11643,1792.1,1791.8,2.7915]
[1743737687859,1.11655,1791.9,1791.8,1.11656]
[1743737688055,1.11655,1791.9,1791.7,0.00838504]
[1743737688261,1.3928,1791.8,1791.7,1.12506504]
[1743737688455,2.50942,1791.8,1791.7,0.00838504]
[1743737688665,5.00942,1791.8,1791.7,1.12506504]
[1743737688859,5.00942,1791.8,1791.7,0.00838504]
[1743737689260,1.3928,1791.8,1791.7,1.12506504]
[1743737690066,2.50942,1791.8,1791.7,0.00838504]
[1743737690364,1.3928,1791.8,1791.7,1.12506504]
[1743737690865,2.50942,1791.8,1791.7,0.00838504]
[1743737691366,1.3928,1791.8,1791.7,1.12506504]
[1743737694970,2.50942,1791.8,1791.7,0.00838504]
[1743737695368,8.21722,1791.8,1791.7,0.00838504]
[1743737695873,8.93412,1791.8,1791.7,0.00838504]
[1743737696866,6.43412,1791.8,1791.7,0.00838504]
[1743737697070,6.43412,1791.8,1791.7,1.12506504]
[1743737697476,2.1097,1791.8,1791.7,1.12506504]
[1743737697969,1.3928,1791.8,1791.7,1.12506504]
[1743737698664,1.3928,1791.8,1791.7,2.52026504]
[1743737700664,1.3928,1791.8,1791.7,0.00838504]
[1743737700980,1.11662,1791.8,1791.7,0.00838504]
[1743737701874,1.1166,1791.9,1791.7,0.00838504]
[1743737702072,1.4404,1791.8,1791.7,1.12506504]
[1743737702377,2.55702,1791.8,1791.7,0.00838504]
[1743737702569,5.81697,1792.1,1791.9,1.11653]
[1743737702768,1.4404,1792.0,1791.9,1.11653]
[1743737703487,3.2078,1792.3,1792.1,1.11642]
[1743737703671,3.2078,1792.3,1792.2,1.11637]
[1743737703869,4.6482,1792.3,1792.2,1.11637]
[1743737704271,1.4404,1792.3,1792.2,1.11637]
[1743737704673,3.2078,1792.5,1792.4,1.11624]
[1743737705181,1.4121,1792.6,1792.5,1.11618]
[1743737705778,0.00550882,1792.7,1792.6,1.11612]
[1743737708282,0.00550882,1792.7,1792.6,5.85722]
[1743737709172,8.82e-06,1792.7,1792.6,5.85722]
[1743737709372,8.82e-06,1792.7,1792.6,6.36143315]
[1743737709874,8.82e-06,1792.7,1792.6,3.86143315]
[1743737710173,5.79246,1793.6,1792.6,3.86143315]
[1743737710174,3.2078,1793.6,1793.2,2.78931]
[1743737710373,1.11536,1793.9,1793.6,1.11545]
[1743737710374,3.2078,1793.9,1793.6,1.11545]
[1743737710579,1.11539,1793.8,1793.6,1.11545]
[1743737710778,4.32316,1793.9,1793.6,1.11545]
[1743737711183,3.2078,1793.9,1793.6,1.11548]
[1743737711477,1.3918,1793.8,1793.6,0.00838504]
[1743737711778,4.32323,1793.7,1793.6,0.00838504]
[1743737711981,5.08393,1793.7,1793.6,0.00838504]
[1743737712179,1.11571,1793.3,1793.0,1.4967]
[1743737712478,1.11581,1793.1,1792.9,1.11589]
[1743737712686,1.11581,1793.1,1792.8,2.54155]
[1743737712891,5.71552,1793.0,1792.8,1.11595]
[1743737713380,5.71552,1793.0,1792.7,0.00838504]
[1743737713381,4.5996,1793.0,1792.7,0.00838504]
[1743737713578,1.11599,1792.8,1792.7,0.00838504]
[1743737713779,4.32379,1792.8,1792.7,0.00838504]
[1743737714087,6.82379,1792.8,1792.7,0.00838504]
[1743737714286,8.27219,1792.8,1792.7,0.00838504]
[1743737715286,5.77219,1792.8,1792.7,0.00838504]
[1743737715485,4.6562,1792.8,1792.7,1.12443504]
[1743737715683,1.4484,1792.8,1792.7,1.12443504]
[1743737716685,1.4484,1792.8,1792.7,2.65703504]
[1743737717082,2.56439,1792.8,1792.7,0.00838504]
[1743737717281,5.77219,1792.8,1792.7,0.00838504]
[1743737718582,6.52639,1792.8,1792.7,0.00838504]
[1743737719884,9.02639,1792.8,1792.7,0.00838504]
[1743737720085,16.6684,1792.8,1792.0,2.1168]
[1743737720280,1.1162,1792.5,1792.1,2.79108]
[1743737720487,1.3916,1792.4,1792.2,1.3877]
[1743737720682,1.3916,1792.4,1792.0,0.7291]
[1743737720887,1.11649,1792.1,1791.9,1.11654]
[1743737721190,1.3916,1792.0,1791.9,1.11654]
[1743737721785,2.50809,1792.0,1791.8,4.33277504]
[1743737722386,1.3916,1792.0,1791.9,1.11655]
[1743737724089,1.3916,1792.0,1791.8,0.00838504]
[1743737724288,1.11655,1791.9,1791.8,0.00838504]
[1743737724682,2.50813,1792.0,1791.8,1.12499504]
[1743737725193,1.11655,1791.9,1791.8,0.00838504]
[1743737725393,1.4065,1791.9,1791.8,1.12500504]
[1743737725887,3.21618504,1792.2,1791.8,3.94338504]
[1743737726087,0.00838504,1792.2,1792.1,1.11643]
[1743737726296,1.41488504,1792.2,1792.1,1.11643]
[1743737727694,1.11645,1792.1,1791.9,2.59132]
[1743737727991,1.11655,1791.9,1791.8,3.94338504]
[1743737728195,1.11655,1791.9,1791.8,0.00838504]
[1743737728391,4.32435,1791.9,1791.8,0.00838504]
[1743737728990,5.83395,1791.9,1791.8,0.00838504]
[1743737729790,1.5096,1791.9,1791.8,0.00838504]
[1743737730003,2.62615,1791.9,1791.8,1.12500504]
[1743737730192,5.83395,1791.9,1791.8,0.00838504]
[1743737730889,4.7174,1791.9,1791.8,0.00838504]
[1743737731084,1.5096,1791.9,1791.8,1.12500504]
[1743737732593,2.62615,1791.9,1791.8,0.00838504]
[1743737732794,5.83395,1791.9,1791.8,0.00838504]
[1743737733892,2.62615,1791.9,1791.8,1.12500504]
[1743737734092,1.5096,1791.9,1791.8,1.12500504]
[1743737734494,2.62615,1791.9,1791.8,1.12500504]
[1743737734693,2.62615,1791.9,1791.8,0.00838504]
[1743737735198,5.83395,1791.9,1791.8,0.00838504]
[1743737736191,4.7174,1791.9,1791.8,1.12500504]
[1743737736386,1.5096,1791.9,1791.8,1.12500504]
[1743737742001,2.62615,1791.9,1791.8,1.12500504]
[1743737742293,5.83395,1791.9,1791.8,0.00838504]
[1743737743401,2.62615,1791.9,1791.8,1.12500504]
[1743737744398,1.5096,1791.9,1791.8,1.12500504]
[1743737752209,2.62615,1791.9,1791.8,1.12500504]
[1743737752806,1.5096,1791.9,1791.8,1.12500504]
[1743737753007,2.62615,1791.9,1791.8,1.12500504]
[1743737753406,1.11672,1791.7,1791.4,0.7561]
[1743737753709,2.55846,1791.6,1791.5,1.11674]
[1743737754304,1.4417,1791.6,1791.5,1.11674]
[1743737754504,2.55844,1791.6,1791.5,1.11674]
[1743737755304,1.4417,1791.6,1791.5,1.11674]
[1743737757808,2.5585,1791.6,1791.4,3.35411504]
[1743737758008,2.55848,1791.6,1791.4,2.23728504]
[1743737758208,2.55848,1791.6,1791.4,1.88129504]
[1743737758412,2.55848,1791.6,1791.4,0.76448504]
[1743737758606,2.55848,1791.6,1791.5,1.1168]
[1743737758813,1.4417,1791.6,1791.5,1.1168]
[1743737759314,3.2078,1791.7,1791.6,1.11674]
[1743737759610,1.4121,1791.8,1791.7,1.11668]
[1743737760006,2.59573,1792.0,1791.6,2.79186]
[1743737760208,2.8913,1792.0,1791.9,1.11655]
[1743737760506,5.97638504,1792.2,1792.1,1.11643]
[1743737760507,0.00838504,1792.2,1792.1,1.11643]
[1743737761207,1.4121,1792.6,1792.5,1.11618]
[1743737761412,4.32378,1792.9,1792.7,1.11604]
[1743737761609,5.73588,1792.9,1792.5,0.7325]
[1743737761801,4.6199,1792.9,1792.8,1.11599]
[1743737763012,4.6199,1792.9,1792.8,1.5212]
[1743737763615,1.4121,1792.9,1792.8,1.5212]
[1743737763915,1.4121,1792.9,1792.8,2.63719]
[1743737764214,1.4121,1792.9,1792.8,1.5212]
[1743737764515,1.4121,1792.9,1792.8,2.63719]
[1743737771719,1.4121,1792.9,1792.7,4.99542504]
[1743737771917,1.11599,1792.8,1792.7,3.87938504]
[1743737772215,1.11599,1792.8,1792.7,0.00838504]
[1743737772718,1.11617,1792.6,1792.4,4.97121]
[1743737772914,4.7356,1792.5,1792.1,5.2926]
[1743737773110,1.11639,1792.2,1791.9,8.4822]
[1743737773310,1.5278,1792.1,1791.9,5.7407]
[1743737773506,1.5278,1792.1,1791.9,1.1165]
[1743737773719,1.5278,1792.1,1791.8,1.1166]
[1743737773918,1.11655,1792.0,1791.8,1.12498504]
[1743737774118,1.4447,1791.9,1791.8,1.12498504]
[1743737775118,1.4447,1791.9,1791.8,1.12500504]
[1743737775716,2.56125,1791.9,1791.8,0.00838504]
[1743737776113,5.76905,1791.9,1791.8,0.00838504]
[1743737782619,1.11686,1791.4,1791.3,2.61328]
[1743737782822,1.11684,1791.5,1791.4,1.11685]
[1743737783622,1.11684,1791.5,1791.4,1.11686]
[1743737784122,2.56448,1791.6,1791.3,1.50478504]
[1743737784423,2.56448,1791.6,1791.5,1.1168]
[1743737784721,2.56448,1791.6,1791.3,1.50478504]
[1743737784722,2.56448,1791.6,1791.4,1.11682]
[1743737784924,2.56448,1791.6,1791.3,1.50478504]
[1743737785123,2.56448,1791.6,1791.4,1.11682]
[1743737785729,1.1168,1791.5,1791.3,2.62169504]
[1743737785922,2.5645,1791.5,1791.3,2.62169504]
[1743737786645,1.11686,1791.4,1791.3,1.50478504]
[1743737786839,2.56455,1791.5,1791.3,1.50478504]
[1743737787039,1.4477,1791.5,1791.3,1.50478504]
[1743737787241,2.56455,1791.5,1791.3,1.50478504]
[1743737787646,2.56455,1791.5,1791.3,2.62170504]
[1743737787943,2.56452,1791.5,1791.3,2.62170504]
[1743737788948,5.04393,1791.7,1791.5,1.1168]
[1743737789146,1.11659,1791.9,1791.4,9.85082]
[1743737789451,1.4382,1791.9,1791.7,1.11663]
[1743737789742,1.4382,1791.9,1791.8,1.11662]
[1743737790345,10.30065504,1792.1,1791.9,1.11654]
[1743737790645,1.4382,1792.0,1791.9,1.11654]
[1743737796240,0.00838504,1792.1,1792.0,1.11649]
[1743737796751,0.00838504,1792.1,1792.0,8.17429]
[1743737797447,1.12481504,1792.1,1792.0,3.85]
[1743737797646,1.11649,1792.0,1791.8,5.07457]
[1743737797848,2.54079,1792.0,1791.9,1.11655]
[1743737798052,1.4243,1792.0,1791.9,1.11655]
[1743737799551,2.54079,1792.0,1791.8,0.7502]
[1743737799755,2.54079,1792.0,1791.9,1.11655]
[1743737800649,1.4243,1792.0,1791.9,1.11655]
[1743737802550,2.54079,1792.0,1791.9,1.11655]
[1743737802855,1.11661,1791.9,1791.8,1.1166]
[1743737803058,2.64651,1791.9,1791.8,1.1166]
[1743737803560,1.5299,1791.9,1791.8,1.1166]
[1743737803761,3.2078,1792.0,1791.9,1.11655]
[1743737803953,4.7377,1792.0,1791.9,1.11655]